fUST/lending_fUST_20250630
["ID","MTS","AMOUNT","RATE_DAILY","PERIOD"]
[368682352,1751295040894,-460.0,0.00018781,2]
[368682353,1751295040905,-460.0,0.00018782,2]
[368682354,1751295040915,-460.0,0.00018782,2]
[368682355,1751295040924,-460.0,0.00018782,2]
[368682356,1751295040933,-460.0,0.00018782,2]
[368682357,1751295040943,-460.0,0.00018782,2]
[368682358,1751295040952,-928.96,0.00018782,2]
[368682359,1751295040962,-460.0,0.00018782,2]
[368682360,1751295040972,-500.07,0.00018782,2]
[368682361,1751295040982,-460.0,0.00018782,2]
[368682362,1751295040992,-460.0,0.00018782,2]
[368682363,1751295041002,-460.0,0.00018782,2]
[368682364,1751295041012,-1588.63,0.00018782,2]
[368682365,1751295041021,-460.0,0.00018782,2]
[368682366,1751295041031,-460.0,0.00018782,2]
[368682367,1751295041040,-460.0,0.00018782,2]
[368682368,1751295041051,-460.0,0.00018782,2]
[368682369,1751295041061,-975.31,0.00018782,2]
[368682370,1751295041070,-460.0,0.00018782,2]
[368682371,1751295041080,-460.0,0.00018782,2]
[368682372,1751295041090,-2489.81,0.00018782,2]
[368682373,1751295041100,-500.0,0.00018783,2]
[368682374,1751295041114,-151.91506502,0.00018783,2]
[368682375,1751295041124,-460.0,0.00018784,2]
[368682376,1751295041134,-207.4,0.000189,2]
[368682377,1751295041143,-690.642,0.000189,2]
[368682378,1751295041153,-500.0,0.000189,2]
[368682379,1751295041165,-500.0,0.000189,2]
[368682380,1751295041175,-1746.43002077,0.000189,2]
[368682381,1751295041184,-1665.7,0.00018953,2]
[368682382,1751295041194,-716.195754,0.00018955,2]
[368682383,1751295041204,-211.58822677,0.0001901,2]
[368682384,1751295041214,-500.0,0.00019028,2]
[368682385,1751295041223,-460.0,0.00019054,2]
[368682386,1751295041233,-1632.9,0.00019054,2]
[368682387,1751295041243,-460.0,0.00019054,2]
[368682388,1751295041253,-460.0,0.00019054,2]
[368682389,1751295041262,-1488.37,0.00019054,2]
[368682390,1751295041272,-460.0,0.00019054,2]
[368682391,1751295041282,-1271.37,0.00019054,2]
[368682392,1751295041291,-2582.23,0.00019054,2]
[368682393,1751295041301,-460.0,0.00019054,2]
[368682394,1751295041313,-460.0,0.00019054,2]
[368682395,1751295041323,-688.78,0.00019054,2]
[368682396,1751295041332,-819.55,0.00019054,2]
[368682397,1751295041342,-460.0,0.00019054,2]
[368682398,1751295041352,-460.0,0.00019054,2]
[368682399,1751295041363,-869.98,0.00019054,2]
[368682400,1751295041374,-384.09,0.00019054,2]
[368682401,1751295041383,-460.0,0.00019054,2]
[368682402,1751295041392,-460.0,0.00019055,2]
[368682403,1751295041402,-460.0,0.00019055,2]
[368682404,1751295041411,-460.0,0.00019055,2]
[368682405,1751295041420,-460.0,0.00019055,2]
[368682406,1751295041430,-460.0,0.00019055,2]
[368682407,1751295041440,-460.0,0.00019055,2]
[368682408,1751295041450,-460.0,0.00019055,2]
[368682409,1751295041459,-468.95,0.00019055,2]
[368682410,1751295041469,-460.0,0.00019055,2]
[368682411,1751295041478,-1751.21,0.00019055,2]
[368682412,1751295041487,-460.0,0.00019055,2]
[368682413,1751295041497,-1925.04,0.00019055,2]
[368682414,1751295041506,-460.0,0.00019055,2]
[368682415,1751295041518,-460.0,0.00019055,2]
[368682416,1751295041529,-460.0,0.00019055,2]
[368682417,1751295041538,-460.0,0.00019055,2]
[368682418,1751295041547,-492.4,0.00019055,2]
[368682419,1751295041556,-745.08,0.00019055,2]
[368682420,1751295041565,-460.0,0.00019055,2]
[368682421,1751295041574,-460.0,0.00019055,2]
[368682422,1751295041584,-229.25,0.00019055,2]
[368682423,1751295041593,-880.56,0.00019055,2]
[368682424,1751295041602,-460.0,0.00019055,2]
[368682425,1751295041611,-460.0,0.00019055,2]
[368682426,1751295041620,-460.0,0.00019056,2]
[368682427,1751295041631,-460.0,0.00019056,2]
[368682428,1751295041640,-460.0,0.00019056,2]
[368682429,1751295041650,-460.0,0.00019056,2]
[368682430,1751295041659,-460.0,0.00019056,2]
[368682431,1751295041669,-928.96,0.00019056,2]
[368682432,1751295041679,-460.0,0.00019056,2]
[368682433,1751295041688,-500.07,0.00019056,2]
[368682434,1751295041698,-460.0,0.00019056,2]
[368682435,1751295041709,-460.0,0.00019056,2]
[368682436,1751295041719,-460.0,0.00019056,2]
[368682437,1751295041729,-1588.63,0.00019056,2]
[368682438,1751295041739,-460.0,0.00019056,2]
[368682439,1751295041749,-460.0,0.00019056,2]
[368682440,1751295041760,-975.31,0.00019056,2]
[368682441,1751295041769,-460.0,0.00019056,2]
[368682442,1751295041778,-460.0,0.00019056,2]
[368682443,1751295041788,-2489.81,0.00019056,2]
[368682444,1751295041797,-500.0,0.00019086,2]
[368682445,1751295041807,-500.0,0.00019086,2]
[368682446,1751295041817,-327.33482435,0.00019086,2]
[368682447,1751295041827,-445.928725,0.00019178,2]
[368682448,1751295041836,-732.341235,0.00019205,2]
[368682449,1751295041846,-1665.7,0.00019227,2]
[368682450,1751295041855,-5936.41659373,0.0001923,2]
[368682451,1751295041866,-460.0,0.00019328,2]
[368682452,1751295041876,-1632.9,0.00019328,2]
[368682453,1751295041885,-460.0,0.00019328,2]
[368682454,1751295041894,-460.0,0.00019328,2]
[368682455,1751295041904,-1488.37,0.00019328,2]
[368682456,1751295041914,-460.0,0.00019328,2]
[368682457,1751295041923,-1271.37,0.00019328,2]
[368682458,1751295041933,-2582.23,0.00019328,2]
[368682459,1751295041942,-460.0,0.00019328,2]
[368682460,1751295041952,-460.0,0.00019328,2]
[368682461,1751295041962,-688.78,0.00019328,2]
[368682462,1751295041971,-819.55,0.00019328,2]
[368682463,1751295041981,-460.0,0.00019328,2]
[368682464,1751295041991,-460.0,0.00019328,2]
[368682465,1751295042000,-869.98,0.00019328,2]
[368682466,1751295042010,-460.0,0.00019328,2]
[368682467,1751295042019,-460.0,0.00019329,2]
[368682468,1751295042029,-460.0,0.00019329,2]
[368682469,1751295042039,-460.0,0.00019329,2]
[368682470,1751295042048,-460.0,0.00019329,2]
[368682471,1751295042057,-460.0,0.00019329,2]
[368682472,1751295042066,-460.0,0.00019329,2]
[368682473,1751295042076,-460.0,0.00019329,2]
[368682474,1751295042085,-468.95,0.00019329,2]
[368682475,1751295042094,-460.0,0.00019329,2]
[368682476,1751295042104,-1751.21,0.00019329,2]
[368682477,1751295042114,-460.0,0.00019329,2]
[368682478,1751295042123,-1925.04,0.00019329,2]
[368682479,1751295042133,-460.0,0.00019329,2]
[368682480,1751295042142,-231.52,0.00019329,2]
[368682481,1751295042152,-460.0,0.00019329,2]
[368682482,1751295042162,-510.75,0.00019329,2]
[368682483,1751295042171,-492.4,0.00019329,2]
[368682484,1751295042180,-745.08,0.00019329,2]
[368682485,1751295042190,-571.31858305,0.00019329,2]
[368682486,1751295042199,-460.0,0.00019329,2]
[368682487,1751295042209,-880.56,0.00019329,2]
[368682488,1751295042218,-460.0,0.00019329,2]
[368682489,1751295042228,-460.0,0.00019329,2]
[368682490,1751295042237,-11390.92016516,0.00019329,2]
[368682491,1751295042246,-460.0,0.0001933,2]
[368682492,1751295042255,-460.0,0.0001933,2]
[368682493,1751295042267,-460.0,0.0001933,2]
[368682494,1751295042279,-928.96,0.0001933,2]
[368682495,1751295042292,-460.0,0.0001933,2]
[368682496,1751295042305,-500.07,0.0001933,2]
[368682497,1751295042318,-460.0,0.0001933,2]
[368682498,1751295042331,-224.11971121,0.0001933,2]
[368682499,1751295042342,-460.0,0.0001933,2]
[368682500,1751295042355,-1588.63,0.0001933,2]
[368682501,1751295042368,-460.0,0.0001933,2]
[368682503,1751295042381,-460.0,0.0001933,2]
[368682504,1751295042392,-975.31,0.0001933,2]
[368682505,1751295042405,-460.0,0.0001933,2]
[368682506,1751295042417,-460.0,0.0001933,2]
[368682507,1751295042430,-2489.81,0.0001933,2]
[368682508,1751295042442,-213.84631524,0.00019354,2]
[368682509,1751295042454,-160.0,0.00019354,2]
[368682510,1751295042467,-12569.13231816,0.00019354,2]
[368682511,1751295042480,-230.31346914,0.00019354,2]
[368682512,1751295042492,-160.0,0.00019354,2]
[368682514,1751295042504,-214.99848635,0.00019354,2]
[368682515,1751295042515,-837.16779106,0.00019354,2]
[368682516,1751295042526,-160.0,0.00019354,2]
[368682517,1751295042538,-847.41730813,0.00019354,2]
[368682518,1751295042549,-160.0,0.00019354,2]
[368682519,1751295042560,-1665.7,0.00019501,2]
[368682520,1751295042573,-15011.85133966,0.00019503,2]
[368682521,1751295042585,-1000.0,0.00019576,2]
[368682522,1751295042596,-460.0,0.00019602,2]
[368682524,1751295042608,-1632.9,0.00019602,2]
[368682527,1751295042618,-460.0,0.00019602,2]
[368682531,1751295042629,-460.0,0.00019602,2]
[368682533,1751295042639,-1488.37,0.00019602,2]
[368682535,1751295042650,-415.59565854,0.00019602,2]
[368682537,1751295042661,-1271.37,0.00019602,2]
[368682540,1751295042672,-2582.23,0.00019602,2]
[368682542,1751295042684,-460.0,0.00019602,2]
[368682544,1751295042695,-460.0,0.00019602,2]
[368682546,1751295042707,-688.78,0.00019602,2]
[368682549,1751295042718,-819.55,0.00019602,2]
[368682550,1751295042729,-460.0,0.00019602,2]
[368682551,1751295042741,-482.28,0.00019602,2]
[368682552,1751295042754,-869.98,0.00019602,2]
[368682553,1751295042766,-460.0,0.00019602,2]
[368682554,1751295042778,-460.0,0.00019603,2]
[368682555,1751295042792,-460.0,0.00019603,2]
[368682556,1751295042803,-460.0,0.00019603,2]
[368682557,1751295042814,-460.0,0.00019603,2]
[368682558,1751295042825,-460.0,0.00019603,2]
[368682559,1751295042835,-460.0,0.00019603,2]
[368682560,1751295042846,-460.0,0.00019603,2]
[368682561,1751295042858,-468.95,0.00019603,2]
[368682562,1751295042869,-460.0,0.00019603,2]
[368682563,1751295042883,-1751.21,0.00019603,2]
[368682564,1751295042895,-460.0,0.00019603,2]
[368682565,1751295042906,-1925.04,0.00019603,2]
[368682566,1751295042916,-460.0,0.00019603,2]
[368682567,1751295042926,-460.0,0.00019603,2]
[368682568,1751295042937,-492.4,0.00019603,2]
[368682569,1751295042948,-745.08,0.00019603,2]
[368682570,1751295042961,-460.0,0.00019603,2]
[368682571,1751295042972,-880.56,0.00019603,2]
[368682572,1751295042983,-460.0,0.00019603,2]
[368682573,1751295042995,-460.0,0.00019603,2]
[368682574,1751295043006,-460.0,0.00019604,2]
[368682575,1751295043016,-460.0,0.00019604,2]
[368682576,1751295043027,-460.0,0.00019604,2]
[368682577,1751295043038,-928.96,0.00019604,2]
[368682578,1751295043049,-460.0,0.00019604,2]
[368682579,1751295043060,-500.07,0.00019604,2]
[368682580,1751295043071,-438.28632599,0.00019604,2]
[368682581,1751295043082,-460.0,0.00019604,2]
[368682582,1751295043093,-1588.63,0.00019604,2]
[368682583,1751295043105,-460.0,0.00019604,2]
[368682584,1751295043116,-460.0,0.00019604,2]
[368682585,1751295043128,-975.31,0.00019604,2]
[368682587,1751295043139,-460.0,0.00019604,2]
[368682588,1751295043150,-460.0,0.00019604,2]
[368682589,1751295043160,-2489.81,0.00019604,2]
[368682590,1751295043171,-500.0,0.00019634,2]
[368682591,1751295043182,-395.07622676,0.00019634,2]
[368682592,1751295043193,-1665.7,0.00019775,2]
[368682593,1751295043204,-460.0,0.00019876,2]
[368682595,1751295043215,-1632.9,0.00019876,2]
[368682597,1751295043226,-460.0,0.00019876,2]
[368682599,1751295043236,-460.0,0.00019876,2]
[368682601,1751295043247,-1488.37,0.00019876,2]
[368682603,1751295043259,-1271.37,0.00019876,2]
[368682606,1751295043270,-2582.23,0.00019876,2]
[368682608,1751295043282,-460.0,0.00019876,2]
[368682610,1751295043292,-208.61,0.00019876,2]
[368682612,1751295043303,-688.78,0.00019876,2]
[368682614,1751295043314,-819.55,0.00019876,2]
[368682617,1751295043325,-460.0,0.00019876,2]
[368682618,1751295043335,-869.98,0.00019876,2]
[368682619,1751295043346,-460.0,0.00019876,2]
[368682620,1751295043359,-460.0,0.00019877,2]
[368682621,1751295043370,-460.0,0.00019877,2]
[368682622,1751295043382,-460.0,0.00019877,2]
[368682623,1751295043393,-460.0,0.00019877,2]
[368682624,1751295043404,-460.0,0.00019877,2]
[368682625,1751295043415,-460.0,0.00019877,2]
[368682626,1751295043427,-460.0,0.00019877,2]
[368682627,1751295043438,-468.95,0.00019877,2]
[368682628,1751295043449,-453.74,0.00019877,2]
[368682629,1751295043460,-1751.21,0.00019877,2]
[368682630,1751295043471,-460.0,0.00019877,2]
[368682631,1751295043482,-1925.04,0.00019877,2]
[368682632,1751295043493,-460.0,0.00019877,2]
[368682633,1751295043503,-460.0,0.00019877,2]
[368682634,1751295043515,-492.4,0.00019877,2]
[368682635,1751295043526,-745.08,0.00019877,2]
[368682636,1751295043537,-460.0,0.00019877,2]
[368682637,1751295043547,-880.56,0.00019877,2]
[368682638,1751295043558,-460.0,0.00019877,2]
[368682639,1751295043568,-460.0,0.00019877,2]
[368682640,1751295043579,-460.0,0.00019878,2]
[368682641,1751295043590,-460.0,0.00019878,2]
[368682642,1751295043601,-488.28,0.00019878,2]
[368682643,1751295043612,-928.96,0.00019878,2]
[368682644,1751295043623,-483.50142813,0.00019878,2]
[368682645,1751295043634,-500.07,0.00019878,2]
[368682646,1751295043644,-460.0,0.00019878,2]
[368682647,1751295043656,-1588.63,0.00019878,2]
[368682648,1751295043666,-460.0,0.00019878,2]
[368682649,1751295043678,-460.0,0.00019878,2]
[368682650,1751295043690,-975.31,0.00019878,2]
[368682651,1751295043701,-460.0,0.00019878,2]
[368682652,1751295043713,-500.0,0.00019878,2]
[368682653,1751295043724,-2489.81,0.00019878,2]
[368682654,1751295043735,-318.638714,0.0001989,2]
[368682655,1751295043747,-2444.90048825,0.000199,2]
[368682656,1751295043758,-162.0,0.00019985,2]
[368682657,1751295043769,-1665.7,0.00020049,2]
[368682658,1751295043780,-2148.0,0.00020098,2]
[368682659,1751295043791,-2444.90048817,0.00020107,2]
[368682660,1751295043800,-1500.0,0.00020124,2]
[368682661,1751295043972,-460.0,0.0002015,2]
[368682662,1751295043990,-1632.9,0.0002015,2]
[368682663,1751295044000,-460.0,0.0002015,2]
[368682664,1751295044011,-221.55,0.0002015,2]
[368682665,1751295044021,-1488.37,0.0002015,2]
[368682666,1751295044031,-1271.37,0.0002015,2]
[368682667,1751295044041,-2582.23,0.0002015,2]
[368682668,1751295044050,-152.45,0.0002015,2]
[368682669,1751295044061,-688.78,0.0002015,2]
[368682670,1751295044071,-819.55,0.0002015,2]
[368682671,1751295044080,-491.65,0.0002015,2]
[368682672,1751295044090,-869.98,0.0002015,2]
[368682673,1751295044100,-460.0,0.0002015,2]
[368682674,1751295044109,-460.0,0.00020151,2]
[368682675,1751295044119,-460.0,0.00020151,2]
[368682676,1751295044128,-460.0,0.00020151,2]
[368682677,1751295044138,-460.0,0.00020151,2]
[368682678,1751295044147,-346.22,0.00020151,2]
[368682679,1751295044157,-460.0,0.00020151,2]
[368682680,1751295044166,-468.95,0.00020151,2]
[368682681,1751295044174,-1751.21,0.00020151,2]
[368682682,1751295044183,-302.2718175,0.00020151,2]
[368682683,1751295044192,-1925.04,0.00020151,2]
[368682684,1751295044201,-460.0,0.00020151,2]
[368682685,1751295044210,-460.0,0.00020151,2]
[368682686,1751295044219,-492.4,0.00020151,2]
[368682687,1751295044228,-745.08,0.00020151,2]
[368682688,1751295044238,-460.0,0.00020151,2]
[368682689,1751295044247,-880.56,0.00020151,2]
[368682690,1751295044257,-460.0,0.00020151,2]
[368682691,1751295044266,-460.0,0.00020151,2]
[368682692,1751295044276,-405.78424587,0.00020152,2]
[368682693,1751295044286,-460.0,0.00020152,2]
[368682694,1751295044296,-928.96,0.00020152,2]
[368682695,1751295044305,-500.07,0.00020152,2]
[368682696,1751295044315,-460.0,0.00020152,2]
[368682697,1751295044325,-1588.63,0.00020152,2]
[368682698,1751295044334,-460.0,0.00020152,2]
[368682699,1751295044344,-460.0,0.00020152,2]
[368682700,1751295044357,-975.31,0.00020152,2]
[368682701,1751295044366,-460.0,0.00020152,2]
[368682702,1751295044376,-2489.81,0.00020152,2]
[368682703,1751295044386,-252.635265,0.00020187,2]
[368682704,1751295044396,-2148.0,0.00020236,2]
[368682705,1751295044406,-215.0738,0.00020269,2]
[368682706,1751295044415,-163.0,0.000203,2]
[368682707,1751295044424,-2444.90048817,0.00020314,3]
[368682708,1751295044435,-500.0,0.00020321,2]
[368682709,1751295044445,-500.0,0.00020321,2]
[368682710,1751295044455,-1665.7,0.00020323,2]
[368682711,1751295044464,-500.0,0.00020348,2]
[368682712,1751295044473,-500.0,0.00020348,2]
[368682713,1751295044483,-500.0,0.00020376,2]
[368682714,1751295044492,-500.0,0.00020376,2]
[368682715,1751295044501,-500.0,0.00020403,2]
[368682716,1751295044510,-500.0,0.00020403,2]
[368682717,1751295044520,-460.0,0.00020424,2]
[368682718,1751295044529,-1632.9,0.00020424,2]
[368682719,1751295044539,-460.0,0.00020424,2]
[368682720,1751295044548,-1488.37,0.00020424,2]
[368682721,1751295044558,-1271.37,0.00020424,2]
[368682722,1751295044567,-2582.23,0.00020424,2]
[368682723,1751295044576,-688.78,0.00020424,2]
[368682724,1751295044585,-819.55,0.00020424,2]
[368682725,1751295044595,-869.98,0.00020424,2]
[368682726,1751295044605,-460.0,0.00020424,2]
[368682727,1751295044615,-460.0,0.00020425,2]
[368682728,1751295044624,-460.0,0.00020425,2]
[368682729,1751295044634,-460.0,0.00020425,2]
[368682730,1751295044643,-460.0,0.00020425,2]
[368682731,1751295044652,-460.0,0.00020425,2]
[368682732,1751295044662,-468.95,0.00020425,2]
[368682733,1751295044671,-1751.21,0.00020425,2]
[368682734,1751295044681,-1925.04,0.00020425,2]
[368682735,1751295044690,-460.0,0.00020425,2]
[368682736,1751295044699,-460.0,0.00020425,2]
[368682737,1751295044708,-492.4,0.00020425,2]
[368682738,1751295044719,-745.08,0.00020425,2]
[368682739,1751295044728,-460.0,0.00020425,2]
[368682740,1751295044737,-880.56,0.00020425,2]
[368682741,1751295044747,-460.0,0.00020425,2]
[368682742,1751295044756,-460.0,0.00020425,2]
[368682743,1751295044766,-460.0,0.00020426,2]
[368682744,1751295044775,-928.96,0.00020426,2]
[368682745,1751295044785,-500.07,0.00020426,2]
[368682746,1751295044795,-460.0,0.00020426,2]
[368682747,1751295044805,-1588.63,0.00020426,2]
[368682748,1751295044816,-576.5034083,0.00020426,2]
[368682749,1751295044826,-460.0,0.00020426,2]
[368682750,1751295044836,-975.31,0.00020426,2]
[368682751,1751295044846,-460.0,0.00020426,2]
[368682752,1751295044856,-2489.81,0.00020426,2]
[368682753,1751295044865,-380.0,0.00020431,2]
[368682754,1751295044875,-392.02510962,0.00020431,2]
[368682755,1751295044885,-2444.90048817,0.00020521,3]
[368682756,1751295044895,-429.0,0.00020522,2]
[368682757,1751295044905,-216.9581414,0.00020547,14]
[368682758,1751295044915,-966.0,0.00020584,2]
[368682759,1751295044924,-654.0,0.00020584,2]
[368682760,1751295044934,-2151.0,0.00020584,2]
[368682761,1751295044944,-406.0,0.00020584,2]
[368682762,1751295044954,-1665.7,0.00020597,2]
[368682763,1751295044964,-1016.14380917,0.00020672,2]
[368682764,1751295044974,-460.0,0.00020698,2]
[368682765,1751295044985,-1632.9,0.00020698,2]
[368682766,1751295044995,-460.0,0.00020698,2]
[368682767,1751295045005,-1488.37,0.00020698,2]
[368682768,1751295045015,-1271.37,0.00020698,2]
[368682769,1751295045025,-2582.23,0.00020698,2]
[368682770,1751295045034,-688.78,0.00020698,2]
[368682771,1751295045044,-819.55,0.00020698,2]
[368682772,1751295045053,-869.98,0.00020698,2]
[368682773,1751295045062,-460.0,0.00020698,2]
[368682774,1751295045072,-460.0,0.00020699,2]
[368682775,1751295045082,-460.0,0.00020699,2]
[368682776,1751295045092,-460.0,0.00020699,2]
[368682777,1751295045102,-271.3180309,0.00020699,2]
[368682778,1751295045111,-460.0,0.00020699,2]
[368682779,1751295045120,-468.95,0.00020699,2]
[368682780,1751295045130,-1751.21,0.00020699,2]
[368682781,1751295045139,-1925.04,0.00020699,2]
[368682782,1751295045148,-460.0,0.00020699,2]
[368682783,1751295045157,-460.0,0.00020699,2]
[368682784,1751295045166,-492.4,0.00020699,2]
[368682785,1751295045176,-745.08,0.00020699,2]
[368682786,1751295045185,-460.0,0.00020699,2]
[368682787,1751295045196,-880.56,0.00020699,2]
[368682788,1751295045205,-460.0,0.00020699,2]
[368682789,1751295045215,-366.04,0.00020699,2]
[368682790,1751295045224,-151.0,0.000207,4]
[368682791,1751295045233,-460.0,0.000207,2]
[368682792,1751295045242,-928.96,0.000207,2]
[368682794,1751295045252,-500.07,0.000207,2]
[368682795,1751295045261,-460.0,0.000207,2]
[368682796,1751295045271,-1588.63,0.000207,2]
[368682797,1751295045280,-460.0,0.000207,2]
[368682798,1751295045290,-975.31,0.000207,2]
[368682799,1751295045299,-460.0,0.000207,2]
[368682801,1751295045308,-2489.81,0.000207,2]
[368682802,1751295045318,-159.319357,0.00020712,2]
[368682803,1751295045327,-159.319357,0.00020712,2]
[368682804,1751295045337,-159.319357,0.00020712,2]
[368682805,1751295045347,-159.319357,0.00020712,2]
[368682806,1751295045358,-318.5133496,0.00020712,2]
[368682808,1751295045367,-156.0123712,0.00020712,2]
[368682809,1751295045378,-153.0,0.00020712,2]
[368682810,1751295045387,-153.0,0.00020712,2]
[368682811,1751295045398,-153.0,0.00020712,2]
[368682812,1751295045408,-2444.90048817,0.00020728,3]
[368682814,1751295045418,-4785.37,0.000208,2]
[368682815,1751295045428,-429.0,0.00020825,2]
[368682816,1751295045438,-1665.7,0.00020871,2]
[368682817,1751295045447,-480.0,0.000209,2]
[368682818,1751295045457,-2444.90048817,0.00020934,4]
[368682819,1751295045466,-2148.0,0.00020966,2]
[368682821,1751295045475,-460.0,0.00020972,2]
[368682822,1751295045485,-1632.9,0.00020972,2]
[368682825,1751295045494,-460.0,0.00020972,2]
[368682827,1751295045504,-1488.37,0.00020972,2]
[368682829,1751295045513,-1271.37,0.00020972,2]
[368682831,1751295045523,-2582.23,0.00020972,2]
[368682833,1751295045531,-688.78,0.00020972,2]
[368682834,1751295045541,-819.55,0.00020972,2]
[368682835,1751295045550,-869.98,0.00020972,2]
[368682836,1751295045559,-460.0,0.00020972,2]
[368682837,1751295045569,-460.0,0.00020973,2]
[368682839,1751295045578,-460.0,0.00020973,2]
[368682840,1751295045587,-460.0,0.00020973,2]
[368682841,1751295045596,-460.0,0.00020973,2]
[368682842,1751295045605,-468.95,0.00020973,2]
[368682843,1751295045615,-1751.21,0.00020973,2]
[368682845,1751295045624,-1925.04,0.00020973,2]
[368682846,1751295045636,-460.0,0.00020973,2]
[368682847,1751295045646,-460.0,0.00020973,2]
[368682848,1751295045655,-492.4,0.00020973,2]
[368682849,1751295045665,-745.08,0.00020973,2]
[368682851,1751295045674,-460.0,0.00020973,2]
[368682852,1751295045683,-880.56,0.00020973,2]
[368682853,1751295045693,-460.0,0.00020973,2]
[368682854,1751295045702,-460.0,0.00020974,2]
[368682855,1751295045711,-928.96,0.00020974,2]
[368682856,1751295045720,-500.07,0.00020974,2]
[368682858,1751295045729,-460.0,0.00020974,2]
[368682859,1751295045739,-1588.63,0.00020974,2]
[368682860,1751295045748,-460.0,0.00020974,2]
[368682861,1751295045758,-975.31,0.00020974,2]
[368682862,1751295045767,-460.0,0.00020974,2]
[368682863,1751295045777,-2489.81,0.00020974,2]
[368682865,1751295045787,-12500.0,0.00020978,2]
[368682866,1751295045796,-2597.02,0.00021,2]
[368682867,1751295045806,-500.0,0.00021,2]
[368682868,1751295045815,-463.13036168,0.00021,2]
[368682869,1751295045825,-500.0,0.00021,2]
[368682870,1751295045835,-500.0,0.00021,2]
[368682872,1751295045844,-501.02285278,0.00021,2]
[368682873,1751295045857,-500.0,0.00021002,2]
[368682874,1751295045867,-500.0,0.00021021,2]
[368682875,1751295045876,-500.0,0.00021042,2]
[368682876,1751295045886,-2148.0,0.00021056,2]
[368682877,1751295045895,-2444.90048817,0.00021141,4]
[368682879,1751295045904,-1665.7,0.00021145,2]
[368682880,1751295045913,-429.0,0.0002119,2]
[368682881,1751295045923,-2200.0,0.00021193,2]
[368682882,1751295045932,-460.0,0.00021246,2]
[368682883,1751295045944,-1272.60650659,0.00021246,2]
[368682886,1751295046045,-360.29349341,0.00021246,2]
[368682887,1751295046054,-391.67432232,0.00021246,2]
[368682888,1751295046066,-68.32567768,0.00021246,2]
[368682890,1751295046076,-1488.37,0.00021246,2]
[368682891,1751295046085,-1271.37,0.00021246,2]
[368682892,1751295046094,-1432.61669464,0.00021246,2]
[368682893,1751295046106,-650.2475448,0.00021246,2]
[368682894,1751295046117,-499.36576056,0.00021246,2]
[368682896,1751295046127,-68.51322339,0.00021246,2]
[368682897,1751295046235,-460.0,0.00018232,2]
[368682898,1751295046244,-620.26677661,0.00021246,2]
[368682899,1751295046255,-819.55,0.00021246,2]
[368682900,1751295046264,-869.98,0.00021246,2]
[368682901,1751295046274,-460.0,0.00021246,2]
[368682902,1751295046283,-460.0,0.00021247,2]
[368682903,1751295046292,-460.0,0.00021247,2]
[368682904,1751295046302,-460.0,0.00021247,2]
[368682905,1751295046311,-468.95,0.00021247,2]